fUSD/lending_fUSD_20250515
["ID","MTS","AMOUNT","RATE_DAILY","PERIOD"]
[361160632,1747312290882,-457.69,0.00014727,2]
[361160633,1747312290892,-400.0,0.00014727,2]
[361160634,1747312290901,-704.72,0.00014727,2]
[361160635,1747312290911,-450.0,0.00014727,2]
[361160636,1747312290920,-640.67,0.00014727,2]
[361160637,1747312290930,-463.55,0.00014727,2]
[361160638,1747312290939,-475.16,0.00014727,2]
[361160639,1747312290950,-647.93,0.00014727,2]
[361160640,1747312290960,-493.97,0.00014727,2]
[361160641,1747312290969,-408.34,0.00014727,2]
[361160642,1747312290979,-930.04,0.00014727,2]
[361160643,1747312290988,-584.59,0.00014727,2]
[361160644,1747312290998,-508.74,0.00014727,2]
[361160645,1747312291008,-400.0,0.00014727,2]
[361160646,1747312291017,-562.67,0.00014727,2]
[361160647,1747312291027,-587.33,0.00014727,2]
[361160648,1747312291037,-2186.73,0.00014727,2]
[361160649,1747312291047,-480.35,0.00014727,2]
[361160650,1747312291057,-1457.0,0.0001473,2]
[361160651,1747312291067,-584.0,0.0001473,2]
[361160652,1747312291076,-429.999,0.0001473,2]
[361160653,1747312291086,-919.0,0.0001473,2]
[361160654,1747312291095,-4014.0,0.0001473,2]
[361160655,1747312291105,-930.001,0.0001473,2]
[361160656,1747312291119,-4274.268,0.0001473,2]
[361160657,1747312291128,-154.0,0.0001473,2]
[361160658,1747312291138,-629.0,0.0001473,2]
[361160659,1747312291147,-175.2,0.00014749,2]
[361160660,1747312291157,-1500.0,0.00014795,2]
[361160661,1747312291166,-1500.0,0.00014795,2]
[361160662,1747312291176,-1500.0,0.00014795,2]
[361160663,1747312291185,-1500.0,0.00014795,2]
[361160664,1747312291195,-1500.0,0.00014795,2]
[361160665,1747312291205,-1500.0,0.00014795,2]
[361160666,1747312291214,-1500.0,0.00014795,2]
[361160667,1747312291223,-1500.0,0.00014795,2]
[361160668,1747312291233,-1500.0,0.00014795,2]
[361160669,1747312291243,-1500.0,0.00014795,2]
[361160670,1747312291252,-1500.0,0.00014795,2]
[361160671,1747312291263,-1500.0,0.00014795,2]
[361160672,1747312291272,-613.65111647,0.00014795,2]
[361160673,1747312291282,-1026.22766495,0.00014795,2]
[361160674,1747312291292,-1500.0,0.00014795,2]
[361160675,1747312291302,-1500.0,0.00014795,2]
[361160676,1747312291311,-1500.0,0.00014795,2]
[361160677,1747312291321,-1096.75543494,0.00014795,2]
[361160678,1747312291331,-1500.0,0.00014795,2]
[361160679,1747312291341,-1500.0,0.00014795,2]
[361160680,1747312291350,-1500.0,0.00014795,2]
[361160681,1747312291374,-1500.0,0.00014795,2]
[361160682,1747312291383,-1500.0,0.00014795,2]
[361160683,1747312291394,-1044.71642606,0.00014795,2]
[361160684,1747312291403,-302.85161102,0.00014795,2]
[361160685,1747312291413,-1500.0,0.00014795,2]
[361160686,1747312291423,-400.0,0.00014835,2]
[361160687,1747312291433,-1000.0,0.00014847,2]
[361160688,1747312291443,-469.89,0.00014882,2]
[361160689,1747312291453,-499.13,0.00014882,2]
[361160690,1747312291463,-2415.52,0.00014882,2]
[361160691,1747312291474,-2561.98,0.00014882,2]
[361160692,1747312291487,-400.0,0.00014883,2]
[361160693,1747312291496,-483.79,0.00014883,2]
[361160694,1747312291506,-709.94,0.00014883,2]
[361160695,1747312291516,-188.12578839,0.00014883,2]
[361160696,1747312291525,-494.81,0.00014883,2]
[361160697,1747312291535,-481.22,0.00014883,2]
[361160698,1747312291545,-400.0,0.00014883,2]
[361160699,1747312291554,-419.11,0.00014883,2]
[361160700,1747312291564,-624.18,0.00014883,2]
[361160701,1747312291574,-400.0,0.00014883,2]
[361160702,1747312291583,-620.77,0.00014883,2]
[361160703,1747312291593,-400.0,0.00014883,2]
[361160704,1747312291602,-440.9,0.00014883,2]
[361160705,1747312291617,-1038.52,0.00014883,2]
[361160706,1747312291626,-881.03,0.00014883,2]
[361160707,1747312291636,-501.16,0.00014883,2]
[361160708,1747312291645,-1344.14,0.00014883,2]
[361160709,1747312291655,-451.75,0.00014883,2]
[361160710,1747312291665,-400.0,0.00014883,2]
[361160711,1747312291675,-612.11,0.00014883,2]
[361160712,1747312291684,-462.96,0.00014883,2]
[361160713,1747312291694,-477.75,0.00014883,2]
[361160714,1747312291703,-400.0,0.00014883,2]
[361160715,1747312291714,-439.58,0.00014883,2]
[361160716,1747312291723,-187.76803032,0.00014883,2]
[361160717,1747312291732,-576.82,0.00014883,2]
[361160718,1747312291742,-413.48,0.00014883,2]
[361160719,1747312291751,-546.12,0.00014883,2]
[361160720,1747312291761,-416.69,0.00014883,2]
[361160721,1747312291771,-505.41,0.00014883,2]
[361160722,1747312291780,-400.0,0.00014883,2]
[361160723,1747312291789,-400.0,0.00014883,2]
[361160724,1747312291799,-465.84,0.00014883,2]
[361160725,1747312291809,-541.62418956,0.00014883,2]
[361160726,1747312292057,-503.61581044,0.00014883,2]
[361160727,1747312292066,-472.83,0.00014883,2]
[361160728,1747312292076,-400.0,0.00014883,2]
[361160729,1747312292087,-699.13,0.00014883,2]
[361160730,1747312292096,-999.87,0.00014883,2]
[361160731,1747312292106,-1258.7,0.00014883,2]
[361160732,1747312292118,-400.0,0.00014883,2]
[361160733,1747312292128,-563.34,0.00014883,2]
[361160734,1747312292139,-522.13,0.00014883,2]
[361160735,1747312292149,-871.71,0.00014883,2]
[361160736,1747312292159,-569.36,0.00014883,2]
[361160737,1747312292168,-467.55,0.00014883,2]
[361160738,1747312292178,-558.97,0.00014883,2]
[361160739,1747312292188,-995.06,0.00014883,2]
[361160740,1747312292197,-2978.01,0.00014883,2]
[361160741,1747312292207,-961.53,0.00014883,2]
[361160742,1747312292216,-814.79,0.00014883,2]
[361160743,1747312292226,-1150.65,0.00014883,2]
[361160744,1747312292236,-953.55,0.00014883,2]
[361160745,1747312292245,-945.18,0.00014883,2]
[361160746,1747312292255,-605.88,0.00014883,2]
[361160747,1747312292265,-400.0,0.00014883,2]
[361160748,1747312292275,-793.37,0.00014883,2]
[361160749,1747312292285,-400.0,0.00014883,2]
[361160750,1747312292295,-400.0,0.00014883,2]
[361160751,1747312292305,-565.3,0.00014883,2]
[361160752,1747312292315,-3659.41,0.00014883,2]
[361160753,1747312292325,-400.0,0.00014883,2]
[361160754,1747312292334,-400.0,0.00014883,2]
[361160755,1747312292345,-586.1,0.00014883,2]
[361160756,1747312292355,-866.92,0.00014883,2]
[361160757,1747312292367,-1133.62,0.00014883,2]
[361160758,1747312292376,-400.0,0.00014883,2]
[361160759,1747312292386,-896.17,0.00014883,2]
[361160760,1747312292396,-3422.62,0.00014883,2]
[361160761,1747312292406,-400.0,0.00014883,2]
[361160762,1747312292416,-400.0,0.00014883,2]
[361160763,1747312292426,-1508.16,0.00014883,2]
[361160764,1747312292436,-400.0,0.00014883,2]
[361160765,1747312292445,-2309.39,0.00014883,2]
[361160766,1747312292455,-546.0,0.00014883,2]
[361160767,1747312292465,-521.69,0.00014883,2]
[361160768,1747312292475,-982.05,0.00014883,2]
[361160769,1747312292491,-499.46,0.00014883,2]
[361160770,1747312292501,-400.0,0.00014883,2]
[361160771,1747312292511,-2191.97,0.00014883,2]
[361160772,1747312292521,-957.61,0.00014883,2]
[361160773,1747312292533,-722.35,0.00014883,2]
[361160774,1747312292543,-400.0,0.00014883,2]
[361160775,1747312292553,-2080.12,0.00014883,2]
[361160776,1747312292563,-668.17,0.00014883,2]
[361160777,1747312292573,-400.0,0.00014883,2]
[361160778,1747312292583,-400.0,0.00014883,2]
[361160779,1747312292592,-400.0,0.00014883,2]
[361160780,1747312292602,-1597.82,0.00014883,2]
[361160781,1747312292612,-1630.72,0.00014883,2]
[361160782,1747312292626,-400.0,0.00014883,2]
[361160783,1747312292636,-3843.82,0.00014883,2]
[361160784,1747312292646,-598.25,0.00014883,2]
[361160785,1747312292656,-1950.93,0.00014883,2]
[361160786,1747312292666,-457.12,0.00014883,2]
[361160787,1747312292676,-922.32,0.00014883,2]
[361160788,1747312292686,-10611.15,0.00014883,2]
[361160789,1747312292696,-400.0,0.00014883,2]
[361160790,1747312292706,-400.0,0.00014883,2]
[361160791,1747312292716,-1108.85,0.00014883,2]
[361160792,1747312292726,-501.52,0.00014883,2]
[361160793,1747312292735,-541.7,0.00014883,2]
[361160794,1747312292745,-601.85,0.00014883,2]
[361160795,1747312292755,-589.76,0.00014883,2]
[361160796,1747312292766,-29073.02,0.00014883,2]
[361160797,1747312292776,-400.0,0.00014883,2]
[361160798,1747312292786,-3250.93,0.00014883,2]
[361160799,1747312292796,-676.29,0.00014883,2]
[361160800,1747312292806,-530.87,0.00014883,2]
[361160801,1747312292816,-2267.04,0.00014883,2]
[361160802,1747312292826,-420.88,0.00014883,2]
[361160803,1747312292836,-796.59,0.00014883,2]
[361160804,1747312292846,-419.55,0.00014884,2]
[361160805,1747312292856,-400.0,0.00014884,2]
[361160806,1747312292869,-400.0,0.00014884,2]
[361160807,1747312292879,-448.46,0.00014884,2]
[361160808,1747312292888,-400.0,0.00014884,2]
[361160809,1747312292898,-400.0,0.00014884,2]
[361160810,1747312292908,-400.0,0.00014884,2]
[361160811,1747312292918,-400.0,0.00014884,2]
[361160812,1747312292928,-400.0,0.00014884,2]
[361160813,1747312292938,-572.49,0.00014884,2]
[361160814,1747312292948,-400.0,0.00014884,2]
[361160815,1747312292957,-455.44,0.00014884,2]
[361160816,1747312292967,-545.88,0.00014884,2]
[361160817,1747312292977,-400.0,0.00014884,2]
[361160818,1747312292987,-613.99,0.00014884,2]
[361160819,1747312292997,-400.0,0.00014884,2]
[361160820,1747312293008,-559.8,0.00014884,2]
[361160821,1747312293018,-7018.63,0.00014884,2]
[361160822,1747312293029,-472.72,0.00014884,2]
[361160823,1747312293040,-1647.57,0.00014884,2]
[361160824,1747312293049,-400.0,0.00014884,2]
[361160825,1747312293059,-582.36,0.00014884,2]
[361160826,1747312293069,-400.0,0.00014884,2]
[361160827,1747312293080,-1273.86,0.00014884,2]
[361160828,1747312293090,-707.6,0.00014884,2]
[361160829,1747312293101,-400.0,0.00014884,2]
[361160830,1747312293111,-847.58,0.00014884,2]
[361160831,1747312293126,-532.14,0.00014884,2]
[361160832,1747312293137,-504.34,0.00014884,2]
[361160833,1747312293147,-539.45,0.00014884,2]
[361160834,1747312293157,-400.0,0.00014884,2]
[361160835,1747312293168,-400.0,0.00014884,2]
[361160836,1747312293178,-672.34,0.00014884,2]
[361160837,1747312293188,-15594.9706927,0.000149,2]
[361160838,1747312293198,-826.96,0.00014968,2]
[361160839,1747312293208,-400.0,0.00014968,2]
[361160840,1747312293218,-400.0,0.00014968,2]
[361160841,1747312293228,-1048.33,0.00014968,2]
[361160842,1747312293238,-400.0,0.00014968,2]
[361160843,1747312293249,-400.0,0.00014968,2]
[361160844,1747312293260,-400.0,0.00014968,2]
[361160845,1747312293270,-423.63,0.00014968,2]
[361160846,1747312293280,-535.8,0.00014968,2]
[361160847,1747312293290,-1990.2,0.00014968,2]
[361160848,1747312293300,-566.87,0.00014968,2]
[361160849,1747312293310,-1075.0,0.00014969,2]
[361160850,1747312293320,-355.22528199,0.0001499,2]
[361160851,1747312293330,-1981.39738555,0.00015,2]
[361160852,1747312293339,-400.0,0.00015,2]
[361160853,1747312293350,-5657.35398422,0.00015,2]
[361160854,1747312293360,-600.0,0.00015,3]
[361160855,1747312293371,-875.79316067,0.00015,2]
[361160856,1747312293381,-7236.1,0.00015,2]
[361160857,1747312293391,-7053.4352698,0.00015,5]
[361160858,1747312293401,-200.0,0.00015,2]
[361160859,1747312293411,-200.0,0.00015,2]
[361160860,1747312293421,-400.0,0.00015001,2]
[361160861,1747312293431,-572.39,0.00015001,2]
[361160862,1747312293440,-400.0,0.00015001,2]
[361160863,1747312293451,-400.0,0.00015001,2]
[361160864,1747312293461,-346.82,0.00015001,2]
[361160865,1747312293470,-400.0,0.00015001,2]
[361160866,1747312293482,-475.17,0.00015001,2]
[361160867,1747312293492,-427.86,0.00015001,2]
[361160868,1747312293502,-531.85,0.00015001,2]
[361160869,1747312293512,-400.0,0.00015001,2]
[361160870,1747312293523,-472.87,0.00015001,2]
[361160871,1747312293532,-800.26,0.00015001,2]
[361160872,1747312293544,-400.0,0.00015001,2]
[361160873,1747312293554,-527.61,0.00015001,2]
[361160874,1747312293565,-938.56,0.00015001,2]
[361160875,1747312293576,-400.0,0.00015001,2]
[361160876,1747312293586,-542.45,0.00015001,2]
[361160877,1747312293597,-448.35,0.00015001,2]
[361160878,1747312293607,-515.02,0.00015001,2]
[361160879,1747312293621,-920.05,0.00015001,2]
[361160880,1747312293632,-619.27,0.00015001,2]
[361160881,1747312293642,-546.2,0.00015001,2]
[361160882,1747312293652,-505.64118293,0.00015001,2]
[361160883,1747312293662,-400.0,0.00015001,2]
[361160884,1747312293673,-400.87,0.00015001,2]
[361160885,1747312293684,-400.0,0.00015001,2]
[361160886,1747312293694,-457.69,0.00015001,2]
[361160887,1747312293704,-400.0,0.00015001,2]
[361160888,1747312293715,-704.72,0.00015001,2]
[361160889,1747312293724,-450.0,0.00015001,2]
[361160890,1747312293734,-640.67,0.00015001,2]
[361160891,1747312293745,-463.55,0.00015001,2]
[361160892,1747312293755,-475.16,0.00015001,2]
[361160893,1747312293765,-647.93,0.00015001,2]
[361160894,1747312293776,-493.97,0.00015001,2]
[361160895,1747312293786,-408.34,0.00015001,2]
[361160896,1747312293797,-930.04,0.00015001,2]
[361160897,1747312293808,-584.59,0.00015001,2]
[361160898,1747312293820,-508.74,0.00015001,2]
[361160899,1747312293831,-400.0,0.00015001,2]
[361160900,1747312293841,-562.67,0.00015001,2]
[361160901,1747312293851,-587.33,0.00015001,2]
[361160902,1747312293862,-2186.73,0.00015001,2]
[361160903,1747312293875,-480.35,0.00015001,2]
[361160904,1747312293886,-823.01,0.00015068,2]
[361160905,1747312293897,-300.0,0.00015068,2]
[361160906,1747312293907,-9668.79148086,0.00015107,2]
[361160907,1747312293918,-400.0,0.00015109,2]
[361160908,1747312293928,-200.0,0.0001515,2]
[361160909,1747312293942,-469.89,0.00015156,2]
[361160910,1747312293954,-499.13,0.00015156,2]
[361160911,1747312293965,-2415.52,0.00015156,2]
[361160912,1747312293977,-2561.98,0.00015156,2]
[361160913,1747312293989,-400.0,0.00015157,2]
[361160914,1747312294000,-483.79,0.00015157,2]
[361160915,1747312294012,-709.94,0.00015157,2]
[361160916,1747312294024,-494.81,0.00015157,2]
[361160917,1747312294035,-481.22,0.00015157,2]
[361160918,1747312294047,-400.0,0.00015157,2]
[361160919,1747312294057,-419.11,0.00015157,2]
[361160920,1747312294068,-624.18,0.00015157,2]
[361160921,1747312294080,-400.0,0.00015157,2]
[361160922,1747312294091,-620.77,0.00015157,2]
[361160923,1747312294102,-400.0,0.00015157,2]
[361160924,1747312294112,-440.9,0.00015157,2]
[361160925,1747312294127,-1038.52,0.00015157,2]
[361160926,1747312294137,-881.03,0.00015157,2]
[361160927,1747312294148,-501.16,0.00015157,2]
[361160928,1747312294159,-1344.14,0.00015157,2]
[361160929,1747312294171,-451.75,0.00015157,2]
[361160930,1747312294182,-400.0,0.00015157,2]
[361160931,1747312294193,-612.11,0.00015157,2]
[361160932,1747312294203,-462.96,0.00015157,2]
[361160933,1747312294214,-477.75,0.00015157,2]
[361160934,1747312294226,-400.0,0.00015157,2]
[361160935,1747312294237,-439.58,0.00015157,2]
[361160936,1747312294247,-576.82,0.00015157,2]
[361160937,1747312294260,-413.48,0.00015157,2]
[361160938,1747312294270,-546.12,0.00015157,2]
[361160939,1747312294282,-416.69,0.00015157,2]
[361160940,1747312294293,-505.41,0.00015157,2]
[361160941,1747312294303,-400.0,0.00015157,2]
[361160942,1747312294314,-400.0,0.00015157,2]
[361160943,1747312294325,-465.84,0.00015157,2]
[361160944,1747312294335,-1045.24,0.00015157,2]
[361160945,1747312294345,-472.83,0.00015157,2]
[361160946,1747312294356,-400.0,0.00015157,2]
[361160947,1747312294367,-699.13,0.00015157,2]
[361160948,1747312294392,-999.87,0.00015157,2]
[361160949,1747312294402,-1258.7,0.00015157,2]
[361160950,1747312294412,-400.0,0.00015157,2]
[361160951,1747312294423,-563.34,0.00015157,2]
[361160952,1747312294434,-871.71,0.00015157,2]
[361160953,1747312294444,-522.13,0.00015157,2]
[361160954,1747312294454,-569.36,0.00015157,2]
[361160955,1747312294464,-467.55,0.00015157,2]
[361160956,1747312294476,-558.97,0.00015157,2]
[361160957,1747312294486,-995.06,0.00015157,2]
[361160958,1747312294496,-2978.01,0.00015157,2]
[361160959,1747312294507,-961.53,0.00015157,2]
[361160960,1747312294516,-814.79,0.00015157,2]
[361160961,1747312294527,-1150.65,0.00015157,2]
[361160962,1747312294537,-953.55,0.00015157,2]
[361160963,1747312294546,-945.18,0.00015157,2]
[361160964,1747312294556,-605.88,0.00015157,2]
[361160965,1747312294567,-400.0,0.00015157,2]
[361160966,1747312294578,-793.37,0.00015157,2]
[361160967,1747312294588,-400.0,0.00015157,2]
[361160968,1747312294599,-565.3,0.00015157,2]
[361160969,1747312294609,-3659.41,0.00015157,2]
[361160970,1747312294621,-548.22074226,0.00015157,2]
[361160971,1747312294632,-400.0,0.00015157,2]
[361160972,1747312294643,-586.1,0.00015157,2]
[361160973,1747312294653,-1133.62,0.00015157,2]
[361160974,1747312294663,-866.92,0.00015157,2]
[361160975,1747312294675,-400.0,0.00015157,2]
[361160976,1747312294685,-896.17,0.00015157,2]
[361160977,1747312294696,-3422.62,0.00015157,2]
[361160978,1747312294706,-400.0,0.00015157,2]
[361160979,1747312294717,-400.0,0.00015157,2]
[361160980,1747312294727,-1508.16,0.00015157,2]
[361160981,1747312294738,-400.0,0.00015157,2]
[361160982,1747312294749,-2309.39,0.00015157,2]
[361160983,1747312294759,-546.0,0.00015157,2]
[361160984,1747312294769,-521.69,0.00015157,2]
[361160985,1747312294780,-982.05,0.00015157,2]
[361160986,1747312294790,-499.46,0.00015157,2]
[361160987,1747312294801,-400.0,0.00015157,2]
[361160988,1747312294811,-2191.97,0.00015157,2]
[361160989,1747312294822,-957.61,0.00015157,2]
[361160990,1747312294833,-722.35,0.00015157,2]
[361160991,1747312294843,-400.0,0.00015157,2]
[361160992,1747312294853,-2080.12,0.00015157,2]
[361160993,1747312294865,-668.17,0.00015157,2]
[361160994,1747312294877,-400.0,0.00015157,2]
[361160995,1747312294888,-400.0,0.00015157,2]
[361160996,1747312294899,-400.0,0.00015157,2]
[361160997,1747312294910,-1597.82,0.00015157,2]
[361160998,1747312294921,-1630.72,0.00015157,2]
[361160999,1747312294932,-400.0,0.00015157,2]
[361161000,1747312294943,-3843.82,0.00015157,2]
[361161001,1747312294954,-598.25,0.00015157,2]
[361161002,1747312294965,-1950.93,0.00015157,2]
[361161003,1747312295218,-457.12,0.00015157,2]
[361161004,1747312295230,-922.32,0.00015157,2]
[361161005,1747312295240,-10611.15,0.00015157,2]
[361161006,1747312295251,-400.0,0.00015157,2]
[361161007,1747312295261,-400.0,0.00015157,2]
[361161008,1747312295271,-1108.85,0.00015157,2]
[361161009,1747312295281,-501.52,0.00015157,2]
[361161010,1747312295291,-541.7,0.00015157,2]
[361161011,1747312295301,-601.85,0.00015157,2]
[361161012,1747312295310,-589.76,0.00015157,2]
[361161013,1747312295321,-29073.02,0.00015157,2]
[361161014,1747312295330,-400.0,0.00015157,2]
[361161015,1747312295340,-3250.93,0.00015157,2]
[361161016,1747312295350,-676.29,0.00015157,2]
[361161017,1747312295360,-530.87,0.00015157,2]
[361161018,1747312295375,-2267.04,0.00015157,2]
[361161019,1747312295385,-420.88,0.00015157,2]
[361161020,1747312295394,-796.59,0.00015157,2]
[361161021,1747312295404,-419.55,0.00015158,2]
[361161022,1747312295413,-273.80028502,0.00015158,2]
[361161023,1747312295423,-400.0,0.00015158,2]
[361161024,1747312295433,-448.46,0.00015158,2]
[361161025,1747312295442,-400.0,0.00015158,2]
[361161026,1747312295452,-400.0,0.00015158,2]
[361161027,1747312295462,-400.0,0.00015158,2]
[361161028,1747312295471,-400.0,0.00015158,2]
[361161029,1747312295483,-450.9546017,0.00015158,2]
[361161030,1747312295493,-572.49,0.00015158,2]
[361161031,1747312295503,-400.0,0.00015158,2]
[361161032,1747312295513,-455.44,0.00015158,2]
[361161033,1747312295523,-545.88,0.00015158,2]
[361161034,1747312295534,-400.0,0.00015158,2]
[361161035,1747312295543,-613.99,0.00015158,2]
[361161036,1747312295553,-262.19541741,0.00015158,2]
[361161037,1747312295563,-559.8,0.00015158,2]
[361161038,1747312295574,-7018.63,0.00015158,2]
[361161039,1747312295584,-472.72,0.00015158,2]
[361161040,1747312295594,-1647.57,0.00015158,2]
[361161041,1747312295603,-400.0,0.00015158,2]
[361161042,1747312295613,-582.36,0.00015158,2]
[361161043,1747312295626,-400.0,0.00015158,2]
[361161044,1747312295636,-1273.86,0.00015158,2]
[361161045,1747312295645,-707.6,0.00015158,2]
[361161046,1747312295656,-400.0,0.00015158,2]
[361161047,1747312295666,-847.58,0.00015158,2]
[361161048,1747312295677,-532.14,0.00015158,2]
[361161049,1747312295686,-504.34,0.00015158,2]
[361161050,1747312295696,-539.45,0.00015158,2]
[361161051,1747312295706,-400.0,0.00015158,2]
[361161052,1747312295716,-400.0,0.00015158,2]
[361161053,1747312295729,-672.34,0.00015158,2]
[361161054,1747312295738,-436.25765087,0.00015211,2]
[361161055,1747312295747,-231.28369723,0.00015234,2]
[361161056,1747312295757,-826.96,0.00015242,2]
[361161057,1747312295767,-241.85444067,0.00015242,2]
[361161058,1747312295776,-400.0,0.00015242,2]
[361161059,1747312295786,-1048.33,0.00015242,2]
[361161060,1747312295797,-400.0,0.00015242,2]
[361161061,1747312295806,-400.0,0.00015242,2]
[361161062,1747312295816,-277.42912703,0.00015242,2]
[361161063,1747312295826,-423.63,0.00015242,2]
[361161064,1747312295835,-535.8,0.00015242,2]
[361161065,1747312295845,-1990.2,0.00015242,2]
[361161066,1747312295855,-566.87,0.00015242,2]
[361161067,1747312295865,-400.0,0.00015275,2]
[361161068,1747312295879,-572.39,0.00015275,2]
[361161069,1747312295889,-400.0,0.00015275,2]
[361161070,1747312295899,-400.0,0.00015275,2]
[361161071,1747312295909,-400.0,0.00015275,2]
[361161072,1747312295918,-475.17,0.00015275,2]
[361161073,1747312295928,-427.86,0.00015275,2]
[361161074,1747312295937,-531.85,0.00015275,2]
[361161075,1747312295947,-400.0,0.00015275,2]
[361161076,1747312295956,-472.87,0.00015275,2]
[361161077,1747312295966,-800.26,0.00015275,2]
[361161078,1747312295976,-400.0,0.00015275,2]
[361161079,1747312295985,-527.61,0.00015275,2]
[361161080,1747312295995,-938.56,0.00015275,2]
[361161081,1747312296006,-400.0,0.00015275,2]
[361161082,1747312296016,-542.45,0.00015275,2]
[361161083,1747312296026,-448.35,0.00015275,2]
[361161084,1747312296036,-515.02,0.00015275,2]
[361161085,1747312296046,-920.05,0.00015275,2]
[361161086,1747312296056,-619.27,0.00015275,2]
[361161087,1747312296066,-546.2,0.00015275,2]
[361161088,1747312296077,-400.0,0.00015275,2]
[361161089,1747312296087,-400.87,0.00015275,2]
[361161090,1747312296097,-400.0,0.00015275,2]
[361161091,1747312296106,-457.69,0.00015275,2]
[361161092,1747312296116,-400.0,0.00015275,2]
[361161093,1747312296133,-704.72,0.00015275,2]
[361161094,1747312296143,-450.0,0.00015275,2]
[361161095,1747312296152,-640.67,0.00015275,2]
[361161096,1747312296161,-463.55,0.00015275,2]
[361161097,1747312296171,-475.16,0.00015275,2]
[361161098,1747312296180,-647.93,0.00015275,2]
[361161099,1747312296190,-493.97,0.00015275,2]
[361161100,1747312296200,-408.34,0.00015275,2]
[361161101,1747312296209,-930.04,0.00015275,2]
[361161102,1747312296219,-584.59,0.00015275,2]
[361161103,1747312296229,-508.74,0.00015275,2]
[361161104,1747312296239,-400.0,0.00015275,2]
[361161105,1747312296250,-562.67,0.00015275,2]
[361161106,1747312296259,-587.33,0.00015275,2]
[361161107,1747312296269,-2186.73,0.00015275,2]
[361161108,1747312296279,-480.35,0.00015275,2]
[361161109,1747312296289,-1517.64,0.000153,2]
[361161110,1747312296299,-160.6185202,0.00015342,2]
[361161111,1747312296308,-2000.0,0.00015342,2]
[361161112,1747312296317,-2000.0,0.00015342,2]
[361161113,1747312296327,-2000.0,0.00015342,2]
[361161114,1747312296337,-2120.76557222,0.00015342,2]
[361161115,1747312296346,-1509.13412488,0.00015342,2]
[361161116,1747312296356,-2000.0,0.00015342,2]
[361161117,1747312296366,-1312.55698395,0.00015342,2]
[361161118,1747312296398,-2138.83821843,0.00015342,2]
[361161119,1747312296408,-159.85944409,0.00015342,2]
[361161120,1747312296418,-2059.33014238,0.00015342,2]
[361161121,1747312296428,-2000.0,0.00015342,2]
[361161122,1747312296438,-2000.0,0.00015342,2]
[361161123,1747312296448,-2000.0,0.00015342,2]
[361161124,1747312296458,-2010.43110204,0.00015342,2]
[361161125,1747312296468,-1004.62507634,0.00015342,2]
[361161126,1747312296482,-2000.0,0.00015342,2]
[361161127,1747312296492,-2000.0,0.00015342,2]
[361161128,1747312296502,-760.72186807,0.00015342,2]
[361161129,1747312296511,-2000.0,0.00015342,2]
[361161130,1747312296522,-2000.0,0.00015342,2]
[361161131,1747312296532,-400.0,0.00015383,2]